[Event "November 21 Late 2023"]
[Site "https://www.chess.com"]
[Date "2023.11.21"]
[Round "10"]
[White "Batsiashvili, Nino"]
[Black "Shapiro, Viktor"]
[Result "1/2-1/2"]
[Board "47"]
[TimeControl "180+1"]
[WhiteFideId "13602993"]
[BlackFideId "4175700"]
[WhiteElo "2233"]
[BlackElo "2084"]
[WhiteTeam "GEO"]
[BlackTeam "RUS"]
[WhiteClock "0:00:09"]
[BlackClock "0:00:19"]

1. e4 {[%clk 0:02:56]}  Nf6 {[%clk 0:03:00]} 2. Nc3 {[%clk 0:02:54]}  d5 {[%clk 0:02:59]} 3. e5 {[%clk 0:02:53]}  Nfd7 {[%clk 0:03:00]} 4. f4 {[%clk 0:02:51]}  e6 {[%clk 0:03:00]} 5. Nf3 {[%clk 0:02:52]}  c5 {[%clk 0:03:00]} 6. d4 {[%clk 0:02:47]}  Nc6 {[%clk 0:02:59]} 7. Ne2 {[%clk 0:02:43]}  b5 {[%clk 0:02:57]} 8. Be3 {[%clk 0:02:40]}  b4 {[%clk 0:02:56]} 9. h4 {[%clk 0:02:38]}  Qb6 {[%clk 0:02:51]} 10. h5 {[%clk 0:02:35]}  h6 {[%clk 0:02:50]} 11. a3 {[%clk 0:02:30]}  a5 {[%clk 0:02:45]} 12. axb4 {[%clk 0:02:29]}  Qxb4+ {[%clk 0:02:39]} 13. Kf2 {[%clk 0:02:10]}  Qxb2 {[%clk 0:02:35]} 14. Rb1 {[%clk 0:02:01]}  Qa3 {[%clk 0:02:23]} 15. Ng3 {[%clk 0:01:57]}  cxd4 {[%clk 0:02:18]} 16. Nxd4 {[%clk 0:01:53]}  Nxd4 {[%clk 0:02:15]} 17. Bxd4 {[%clk 0:01:54]}  Bc5 {[%clk 0:02:15]} 18. Bb5 {[%clk 0:01:54]}  Qc3 {[%clk 0:02:00]} 19. Ne2 {[%clk 0:01:48]}  Bxd4+ {[%clk 0:02:00]} 20. Nxd4 {[%clk 0:01:46]}  O-O {[%clk 0:01:53]} 21. Rh3 {[%clk 0:01:46]}  Qc5 {[%clk 0:01:53]} 22. Rg3 {[%clk 0:01:38]}  f6 {[%clk 0:01:47]} 23. Bxd7 {[%clk 0:01:26]}  Bxd7 {[%clk 0:01:46]} 24. Rb7 {[%clk 0:01:24]}  Ra7 {[%clk 0:01:35]} 25. Rxa7 {[%clk 0:01:21]}  Qxa7 {[%clk 0:01:34]} 26. Kg1 {[%clk 0:01:20]}  fxe5 {[%clk 0:01:33]} 27. fxe5 {[%clk 0:01:21]}  Rf4 {[%clk 0:01:31]} 28. Rg4 {[%clk 0:01:21]}  Rxg4 {[%clk 0:01:27]} 29. Qxg4 {[%clk 0:01:22]}  a4 {[%clk 0:01:23]} 30. Kh2 {[%clk 0:01:15]}  a3 {[%clk 0:01:18]} 31. Nxe6 {[%clk 0:01:15]}  Bxe6 {[%clk 0:01:10]} 32. Qxe6+ {[%clk 0:01:16]}  Qf7 {[%clk 0:01:09]} 33. Qa6 {[%clk 0:00:47]}  Qxh5+ {[%clk 0:01:07]} 34. Kg1 {[%clk 0:00:47]}  Qxe5 {[%clk 0:00:56]} 35. Qxa3 {[%clk 0:00:46]}  Qe4 {[%clk 0:00:52]} 36. Qb3 {[%clk 0:00:44]}  Kh7 {[%clk 0:00:52]} 37. Kh2 {[%clk 0:00:42]}  h5 {[%clk 0:00:52]} 38. Qc3 {[%clk 0:00:40]}  Kh6 {[%clk 0:00:51]} 39. Qc6+ {[%clk 0:00:39]}  g6 {[%clk 0:00:48]} 40. Qd6 {[%clk 0:00:34]}  h4 {[%clk 0:00:43]} 41. Qf6 {[%clk 0:00:31]}  Kh5 {[%clk 0:00:40]} 42. c3 {[%clk 0:00:22]}  Qf5 {[%clk 0:00:37]} 43. Qd4 {[%clk 0:00:16]}  Kg5 {[%clk 0:00:33]} 44. Kg1 {[%clk 0:00:15]}  Qe4 {[%clk 0:00:32]} 45. Qh8 {[%clk 0:00:14]}  Kg4 {[%clk 0:00:31]} 46. Qb8 {[%clk 0:00:13]}  Qe1+ {[%clk 0:00:29]} 47. Kh2 {[%clk 0:00:12]}  Qg3+ {[%clk 0:00:29]} 48. Qxg3+ {[%clk 0:00:12]}  hxg3+ {[%clk 0:00:30]} 49. Kg1 {[%clk 0:00:13]}  Kf4 {[%clk 0:00:30]} 50. Kf1 {[%clk 0:00:14]}  Ke4 {[%clk 0:00:30]} 51. Ke2 {[%clk 0:00:15]}  g5 {[%clk 0:00:25]} 52. Kd2 {[%clk 0:00:15]}  d4 {[%clk 0:00:20]} 53. cxd4 {[%clk 0:00:02]}  Kxd4 {[%clk 0:00:20]} 54. Ke2 {[%clk 0:00:02]}  Ke4 {[%clk 0:00:20]} 55. Kf1 {[%clk 0:00:03]}  Ke3 {[%clk 0:00:20]} 56. Kg1 {[%clk 0:00:04]}  Ke2 {[%clk 0:00:19]} 57. Kh1 {[%clk 0:00:04]}  Ke1 {[%clk 0:00:19]} 58. Kg1 {[%clk 0:00:05]}  Ke2 {[%clk 0:00:19]} 59. Kh1 {[%clk 0:00:06]}  Ke3 {[%clk 0:00:18]} 60. Kg1 {[%clk 0:00:07]}  Kd2 {[%clk 0:00:18]} 61. Kh1 {[%clk 0:00:08]}  Ke1 {[%clk 0:00:19]} 62. Kg1 {[%clk 0:00:09]}  Ke2 {[%clk 0:00:19]} 1/2-1/2

[Event "November 21 Late 2023"]
[Site "https://www.chess.com"]
[Date "2023.11.21"]
[Round "10"]
[White "Willy, Stephen"]
[Black "Pinheiro, Iung Alicio de O."]
[Result "0-1"]
[Board "48"]
[TimeControl "180+1"]
[WhiteFideId "30981468"]
[BlackFideId "2104350"]
[WhiteElo "2139"]
[BlackElo "2283"]
[WhiteTeam "USA"]
[BlackTeam "BRA"]
[WhiteClock "0:00:00"]
[BlackClock "0:00:14"]

1. Nf3 {[%clk 0:02:55]}  d5 {[%clk 0:02:57]} 2. e3 {[%clk 0:02:45]}  Nf6 {[%clk 0:02:48]} 3. b3 {[%clk 0:02:43]}  Bg4 {[%clk 0:02:33]} 4. Bb2 {[%clk 0:02:41]}  Nbd7 {[%clk 0:02:32]} 5. c4 {[%clk 0:02:38]}  e6 {[%clk 0:02:26]} 6. h3 {[%clk 0:02:36]}  Bh5 {[%clk 0:02:18]} 7. Nc3 {[%clk 0:02:31]}  c6 {[%clk 0:02:15]} 8. Be2 {[%clk 0:02:19]}  Bd6 {[%clk 0:02:12]} 9. O-O {[%clk 0:02:16]}  Qe7 {[%clk 0:02:08]} 10. d4 {[%clk 0:02:10]}  g5 {[%clk 0:01:54]} 11. Ne5 {[%clk 0:02:05]}  Bxe2 {[%clk 0:01:11]} 12. Nxe2 {[%clk 0:02:06]}  g4 {[%clk 0:00:59]} 13. hxg4 {[%clk 0:01:57]}  O-O-O {[%clk 0:00:57]} 14. f3 {[%clk 0:01:49]}  Rdg8 {[%clk 0:00:55]} 15. Rc1 {[%clk 0:01:30]}  Kb8 {[%clk 0:00:50]} 16. cxd5 {[%clk 0:01:16]}  cxd5 {[%clk 0:00:38]} 17. Qd3 {[%clk 0:01:05]}  h5 {[%clk 0:00:25]} 18. Qb5 {[%clk 0:01:04]}  Bxe5 {[%clk 0:00:23]} 19. dxe5 {[%clk 0:01:03]}  Ne8 {[%clk 0:00:23]} 20. Nd4 {[%clk 0:00:53]}  Nb6 {[%clk 0:00:21]} 21. Rc2 {[%clk 0:00:29]}  Nc7 {[%clk 0:00:18]} 22. Qc5 {[%clk 0:00:26]}  Qxc5 {[%clk 0:00:15]} 23. Rxc5 {[%clk 0:00:27]}  hxg4 {[%clk 0:00:16]} 24. fxg4 {[%clk 0:00:25]}  Rxg4 {[%clk 0:00:17]} 25. Rxf7 {[%clk 0:00:25]}  Na6 {[%clk 0:00:16]} 26. Rc2 {[%clk 0:00:21]}  Rhg8 {[%clk 0:00:17]} 27. Nxe6 {[%clk 0:00:20]}  Nb4 {[%clk 0:00:17]} 28. Rcf2 {[%clk 0:00:19]}  Nd3 {[%clk 0:00:17]} 29. Rf8+ {[%clk 0:00:19]}  Nc8 {[%clk 0:00:16]} 30. Rxg8 {[%clk 0:00:08]}  Rxg8 {[%clk 0:00:17]} 31. Rd2 {[%clk 0:00:08]}  Nxb2 {[%clk 0:00:15]} 32. Rxb2 {[%clk 0:00:08]}  Re8 {[%clk 0:00:16]} 33. Nd4 {[%clk 0:00:07]}  Rxe5 {[%clk 0:00:17]} 34. Kf2 {[%clk 0:00:08]}  Nd6 {[%clk 0:00:17]} 35. Kf3 {[%clk 0:00:06]}  Ne4 {[%clk 0:00:17]} 36. Kf4 {[%clk 0:00:06]}  Re8 {[%clk 0:00:18]} 37. g4 {[%clk 0:00:06]}  Kc7 {[%clk 0:00:17]} 38. Rc2+ {[%clk 0:00:05]}  Kd7 {[%clk 0:00:17]} 39. Nf5 {[%clk 0:00:05]}  Rh8 {[%clk 0:00:15]} 40. Ke5 {[%clk 0:00:05]}  Ng5 {[%clk 0:00:13]} 41. Kxd5 {[%clk 0:00:04]}  Re8 {[%clk 0:00:12]} 42. Kd4 {[%clk 0:00:04]}  Ne4 {[%clk 0:00:12]} 43. Rh2 {[%clk 0:00:03]}  Nf6 {[%clk 0:00:12]} 44. Rh6 {[%clk 0:00:04]}  Nxg4 {[%clk 0:00:11]} 45. Rh7+ {[%clk 0:00:04]}  Kc6 {[%clk 0:00:09]} 46. e4 {[%clk 0:00:04]}  Rd8+ {[%clk 0:00:09]} 47. Kc3 {[%clk 0:00:04]}  Nf6 {[%clk 0:00:09]} 48. Nd4+ {[%clk 0:00:04]}  Rxd4 {[%clk 0:00:08]} 49. Kxd4 {[%clk 0:00:04]}  Nxh7 {[%clk 0:00:09]} 50. Ke5 {[%clk 0:00:04]}  Nf8 {[%clk 0:00:07]} 51. Kf6 {[%clk 0:00:04]}  Nd7+ {[%clk 0:00:07]} 52. Ke6 {[%clk 0:00:04]}  Nc5+ {[%clk 0:00:08]} 53. Kf5 {[%clk 0:00:04]}  Kd6 {[%clk 0:00:07]} 54. e5+ {[%clk 0:00:04]}  Kd5 {[%clk 0:00:08]} 55. Kf6 {[%clk 0:00:04]}  Ne6 {[%clk 0:00:08]} 56. Kf5 {[%clk 0:00:03]}  b5 {[%clk 0:00:08]} 57. Kf6 {[%clk 0:00:03]}  b4 {[%clk 0:00:08]} 58. Kf5 {[%clk 0:00:04]}  a5 {[%clk 0:00:08]} 59. Kf6 {[%clk 0:00:04]}  Nd4 {[%clk 0:00:09]} 60. e6 {[%clk 0:00:02]}  Nxe6 {[%clk 0:00:09]} 61. Kf5 {[%clk 0:00:02]}  Nc5 {[%clk 0:00:08]} 62. Kf4 {[%clk 0:00:03]}  Kd4 {[%clk 0:00:09]} 63. Kf5 {[%clk 0:00:03]}  Kc3 {[%clk 0:00:10]} 64. Ke5 {[%clk 0:00:03]}  Kb2 {[%clk 0:00:10]} 65. Kd4 {[%clk 0:00:03]}  Nxb3+ {[%clk 0:00:11]} 66. Kc4 {[%clk 0:00:03]}  Nc1 {[%clk 0:00:10]} 67. Kb5 {[%clk 0:00:03]}  Kxa2 {[%clk 0:00:11]} 68. Ka4 {[%clk 0:00:04]}  b3 {[%clk 0:00:12]} 69. Kxa5 {[%clk 0:00:04]}  b2 {[%clk 0:00:13]} 70. Kb5 {[%clk 0:00:04]}  b1=Q+ {[%clk 0:00:14]} 71. Kc6 {[%clk 0:00:05]}  Qb4 {[%clk 0:00:14]} 72. Kd5 {[%clk 0:00:00]}  Nd3 {[%clk 0:00:14]} 0-1

[Event "November 21 Late 2023"]
[Site "https://www.chess.com"]
[Date "2023.11.21"]
[Round "10"]
[White "Prithu Gupta"]
[Black "TheAlienParty"]
[Result "1-0"]
[Board "49"]
[TimeControl "180+1"]
[WhiteFideId "46618546"]
[WhiteElo "2344"]
[BlackElo "2410"]
[WhiteTeam "IND"]
[WhiteClock "0:01:10"]
[BlackClock "0:00:07"]

1. d4 {[%clk 0:03:00]}  Nf6 {[%clk 0:02:54]} 2. Nf3 {[%clk 0:03:00]}  e6 {[%clk 0:02:53]} 3. g3 {[%clk 0:03:00]}  d5 {[%clk 0:02:50]} 4. Bg2 {[%clk 0:03:00]}  c6 {[%clk 0:02:49]} 5. O-O {[%clk 0:03:01]}  Nbd7 {[%clk 0:02:45]} 6. Na3 {[%clk 0:02:58]}  Be7 {[%clk 0:02:42]} 7. c3 {[%clk 0:02:58]}  O-O {[%clk 0:02:41]} 8. Nc2 {[%clk 0:02:57]}  b6 {[%clk 0:02:41]} 9. Bg5 {[%clk 0:02:55]}  Bb7 {[%clk 0:02:41]} 10. Nd2 {[%clk 0:02:55]}  Rc8 {[%clk 0:02:40]} 11. e4 {[%clk 0:02:55]}  dxe4 {[%clk 0:02:39]} 12. Nxe4 {[%clk 0:02:53]}  Nxe4 {[%clk 0:02:38]} 13. Bxe7 {[%clk 0:02:53]}  Nxc3 {[%clk 0:02:11]} 14. Bxd8 {[%clk 0:02:42]}  Nxd1 {[%clk 0:02:09]} 15. Bxb6 {[%clk 0:02:42]}  Nxb2 {[%clk 0:01:52]} 16. Bxa7 {[%clk 0:02:34]}  Ra8 {[%clk 0:01:51]} 17. Rfb1 {[%clk 0:02:21]}  Rxa7 {[%clk 0:01:46]} 18. Rxb2 {[%clk 0:02:21]}  Rc8 {[%clk 0:01:40]} 19. h4 {[%clk 0:02:20]}  Ba6 {[%clk 0:01:39]} 20. Nb4 {[%clk 0:02:19]}  Bb5 {[%clk 0:01:37]} 21. Rc1 {[%clk 0:02:15]}  Ra4 {[%clk 0:01:18]} 22. Nxc6 {[%clk 0:02:11]}  Bxc6 {[%clk 0:01:17]} 23. Rxc6 {[%clk 0:02:09]}  Rf8 {[%clk 0:01:06]} 24. d5 {[%clk 0:02:05]}  exd5 {[%clk 0:01:04]} 25. Bxd5 {[%clk 0:02:05]}  Nf6 {[%clk 0:01:04]} 26. Bb3 {[%clk 0:02:05]}  Ra7 {[%clk 0:01:01]} 27. Rbc2 {[%clk 0:02:02]}  g6 {[%clk 0:01:00]} 28. Rc7 {[%clk 0:02:02]}  Rxc7 {[%clk 0:00:44]} 29. Rxc7 {[%clk 0:02:03]}  Kg7 {[%clk 0:00:43]} 30. Kg2 {[%clk 0:02:04]}  Ne8 {[%clk 0:00:41]} 31. Rd7 {[%clk 0:02:02]}  Nf6 {[%clk 0:00:40]} 32. Rb7 {[%clk 0:02:02]}  h5 {[%clk 0:00:39]} 33. a4 {[%clk 0:02:01]}  Ne4 {[%clk 0:00:38]} 34. Rc7 {[%clk 0:01:47]}  Nd6 {[%clk 0:00:36]} 35. a5 {[%clk 0:01:44]}  Ra8 {[%clk 0:00:35]} 36. Rd7 {[%clk 0:01:42]}  Rxa5 {[%clk 0:00:29]} 37. Rxd6 {[%clk 0:01:42]}  Rf5 {[%clk 0:00:29]} 38. Rd7 {[%clk 0:01:40]}  Rf6 {[%clk 0:00:29]} 39. f3 {[%clk 0:01:36]}  Kf8 {[%clk 0:00:29]} 40. g4 {[%clk 0:01:36]}  Ke8 {[%clk 0:00:29]} 41. Rb7 {[%clk 0:01:33]}  Kf8 {[%clk 0:00:28]} 42. Kg3 {[%clk 0:01:31]}  Kg7 {[%clk 0:00:28]} 43. g5 {[%clk 0:01:27]}  Rf5 {[%clk 0:00:27]} 44. f4 {[%clk 0:01:22]}  Kf8 {[%clk 0:00:26]} 45. Kf3 {[%clk 0:01:23]}  Kg7 {[%clk 0:00:15]} 46. Ke4 {[%clk 0:01:23]}  Kf8 {[%clk 0:00:15]} 47. Bd5 {[%clk 0:01:21]}  Kg7 {[%clk 0:00:15]} 48. Be6 {[%clk 0:01:21]}  Ra5 {[%clk 0:00:12]} 49. Rxf7+ {[%clk 0:01:21]}  Kh8 {[%clk 0:00:13]} 50. f5 {[%clk 0:01:13]}  Ra4+ {[%clk 0:00:12]} 51. Ke5 {[%clk 0:01:13]}  Rxh4 {[%clk 0:00:12]} 52. Kf6 {[%clk 0:01:10]}  Rf4 {[%clk 0:00:12]} 53. Kxg6 {[%clk 0:01:10]}  Kg8 {[%clk 0:00:07]} 54. Rf6+ {[%clk 0:01:10]} 1-0

[Event "November 21 Late 2023"]
[Site "https://www.chess.com"]
[Date "2023.11.21"]
[Round "10"]
[White "Garrido, Denis"]
[Black "Jovic, Stanoje"]
[Result "1-0"]
[Board "50"]
[TimeControl "180+1"]
[WhiteFideId "601217"]
[BlackFideId "905020"]
[WhiteElo "2398"]
[BlackElo "2249"]
[WhiteTeam "FRA"]
[BlackTeam "SRB"]
[WhiteClock "0:01:08"]
[BlackClock "0:00:00"]

1. e4 {[%clk 0:03:00]}  c6 {[%clk 0:02:59]} 2. d4 {[%clk 0:03:00]}  d5 {[%clk 0:02:59]} 3. Nc3 {[%clk 0:03:00]}  dxe4 {[%clk 0:02:59]} 4. Nxe4 {[%clk 0:03:01]}  Nf6 {[%clk 0:02:59]} 5. Nxf6+ {[%clk 0:03:00]}  exf6 {[%clk 0:03:00]} 6. c3 {[%clk 0:03:01]}  Bd6 {[%clk 0:03:01]} 7. Bd3 {[%clk 0:03:01]}  O-O {[%clk 0:03:01]} 8. Ne2 {[%clk 0:03:01]}  Qc7 {[%clk 0:03:01]} 9. Qc2 {[%clk 0:02:55]}  h6 {[%clk 0:03:01]} 10. h3 {[%clk 0:02:47]}  c5 {[%clk 0:03:00]} 11. dxc5 {[%clk 0:02:46]}  Bxc5 {[%clk 0:02:59]} 12. Bf4 {[%clk 0:02:42]}  Qb6 {[%clk 0:02:59]} 13. O-O {[%clk 0:02:42]}  a5 {[%clk 0:02:59]} 14. Bf5 {[%clk 0:02:25]}  Nc6 {[%clk 0:02:57]} 15. Ng3 {[%clk 0:02:24]}  g5 {[%clk 0:02:50]} 16. Bd2 {[%clk 0:02:19]}  Ne5 {[%clk 0:02:47]} 17. Bxc8 {[%clk 0:02:16]}  Raxc8 {[%clk 0:02:46]} 18. Qf5 {[%clk 0:02:15]}  Qe6 {[%clk 0:02:37]} 19. Qe4 {[%clk 0:02:09]}  Nc4 {[%clk 0:02:34]} 20. Bc1 {[%clk 0:02:02]}  Qxe4 {[%clk 0:02:28]} 21. Nxe4 {[%clk 0:02:03]}  f5 {[%clk 0:02:28]} 22. Nxc5 {[%clk 0:01:54]}  Rxc5 {[%clk 0:02:27]} 23. b3 {[%clk 0:01:55]}  Ne5 {[%clk 0:02:15]} 24. Ba3 {[%clk 0:01:53]}  Rxc3 {[%clk 0:02:15]} 25. Bxf8 {[%clk 0:01:52]}  Kxf8 {[%clk 0:02:15]} 26. Rac1 {[%clk 0:01:49]}  Rd3 {[%clk 0:02:05]} 27. Rfd1 {[%clk 0:01:39]}  Rxd1+ {[%clk 0:02:05]} 28. Rxd1 {[%clk 0:01:40]}  Ke7 {[%clk 0:02:04]} 29. Rd5 {[%clk 0:01:39]}  Nc6 {[%clk 0:02:02]} 30. Rxf5 {[%clk 0:01:37]}  a4 {[%clk 0:01:23]} 31. Rb5 {[%clk 0:01:29]}  axb3 {[%clk 0:01:15]} 32. Rxb7+ {[%clk 0:01:29]}  Kd6 {[%clk 0:01:14]} 33. Rxb3 {[%clk 0:01:30]}  f5 {[%clk 0:01:13]} 34. Kf1 {[%clk 0:01:28]}  Kc5 {[%clk 0:01:08]} 35. Rc3+ {[%clk 0:01:23]}  Kb5 {[%clk 0:01:05]} 36. Re3 {[%clk 0:01:19]}  Nd4 {[%clk 0:00:56]} 37. Re8 {[%clk 0:01:16]}  h5 {[%clk 0:00:54]} 38. Rh8 {[%clk 0:01:15]}  h4 {[%clk 0:00:53]} 39. Rh5 {[%clk 0:01:10]}  Ne6 {[%clk 0:00:50]} 40. Rh6 {[%clk 0:01:10]}  Nd4 {[%clk 0:00:33]} 41. Rg6 {[%clk 0:01:10]}  Kb4 {[%clk 0:00:30]} 42. Rxg5 {[%clk 0:01:10]}  Ka3 {[%clk 0:00:30]} 43. Rh5 {[%clk 0:01:09]}  Kxa2 {[%clk 0:00:30]} 44. Rxh4 {[%clk 0:01:10]}  Ne6 {[%clk 0:00:29]} 45. Rh6 {[%clk 0:01:09]}  Nc5 {[%clk 0:00:25]} 46. Rh5 {[%clk 0:01:08]}  Kb3 {[%clk 0:00:00]} 47. Rxf5 {[%clk 0:01:08]} 1-0

[Event "November 21 Late 2023"]
[Site "https://www.chess.com"]
[Date "2023.11.21"]
[Round "10"]
[White "ciutadella"]
[Black "Estrategia_vs_Tactica"]
[Result "0-1"]
[Board "51"]
[TimeControl "180+1"]
[WhiteElo "2539"]
[BlackElo "2362"]
[WhiteClock "0:00:15"]
[BlackClock "0:00:10"]

1. Nf3 {[%clk 0:03:00]}  Nf6 {[%clk 0:01:59]} 2. c4 {[%clk 0:03:01]}  g6 {[%clk 0:01:58]} 3. Nc3 {[%clk 0:03:01]}  Bg7 {[%clk 0:01:59]} 4. d4 {[%clk 0:03:00]}  O-O {[%clk 0:01:59]} 5. e3 {[%clk 0:03:00]}  b6 {[%clk 0:01:58]} 6. g3 {[%clk 0:03:00]}  Bb7 {[%clk 0:01:59]} 7. Bg2 {[%clk 0:03:00]}  e6 {[%clk 0:01:57]} 8. O-O {[%clk 0:03:00]}  Ne4 {[%clk 0:01:56]} 9. Bd2 {[%clk 0:02:55]}  f5 {[%clk 0:01:53]} 10. Qc2 {[%clk 0:02:54]}  Nxc3 {[%clk 0:01:51]} 11. Bxc3 {[%clk 0:02:53]}  Be4 {[%clk 0:01:50]} 12. Qb3 {[%clk 0:02:51]}  Qc8 {[%clk 0:01:50]} 13. Rfd1 {[%clk 0:02:43]}  d5 {[%clk 0:01:44]} 14. cxd5 {[%clk 0:02:38]}  exd5 {[%clk 0:01:43]} 15. Ne5 {[%clk 0:02:30]}  Bxg2 {[%clk 0:01:42]} 16. Kxg2 {[%clk 0:02:29]}  c6 {[%clk 0:01:42]} 17. Rac1 {[%clk 0:02:26]}  Qe6 {[%clk 0:01:38]} 18. f4 {[%clk 0:02:22]}  Nd7 {[%clk 0:01:34]} 19. Bb4 {[%clk 0:02:19]}  c5 {[%clk 0:01:28]} 20. dxc5 {[%clk 0:02:12]}  Nxe5 {[%clk 0:01:04]} 21. fxe5 {[%clk 0:02:10]}  Qxe5 {[%clk 0:01:04]} 22. Qxd5+ {[%clk 0:02:08]}  Qxd5+ {[%clk 0:01:03]} 23. Rxd5 {[%clk 0:02:09]}  Bxb2 {[%clk 0:01:03]} 24. Rc2 {[%clk 0:02:07]}  bxc5 {[%clk 0:01:03]} 25. Rcxc5 {[%clk 0:01:46]}  Rfd8 {[%clk 0:00:58]} 26. Kf3 {[%clk 0:01:41]}  h6 {[%clk 0:00:47]} 27. h4 {[%clk 0:01:39]}  Rxd5 {[%clk 0:00:47]} 28. Rxd5 {[%clk 0:01:39]}  Kf7 {[%clk 0:00:47]} 29. Rd7+ {[%clk 0:01:37]}  Ke6 {[%clk 0:00:46]} 30. Rb7 {[%clk 0:01:35]}  g5 {[%clk 0:00:45]} 31. Rh7 {[%clk 0:01:28]}  g4+ {[%clk 0:00:42]} 32. Ke2 {[%clk 0:01:28]}  Be5 {[%clk 0:00:32]} 33. Rxh6+ {[%clk 0:01:26]}  Kd5 {[%clk 0:00:32]} 34. Rh5 {[%clk 0:01:15]}  Ke4 {[%clk 0:00:31]} 35. Rh7 {[%clk 0:00:54]}  Rb8 {[%clk 0:00:31]} 36. a3 {[%clk 0:00:53]}  a5 {[%clk 0:00:30]} 37. Bxa5 {[%clk 0:00:46]}  Rb2+ {[%clk 0:00:30]} 38. Kd1 {[%clk 0:00:43]}  Bxg3 {[%clk 0:00:28]} 39. Re7+ {[%clk 0:00:43]}  Kf3 {[%clk 0:00:26]} 40. h5 {[%clk 0:00:42]}  Bd6 {[%clk 0:00:21]} 41. Rf7 {[%clk 0:00:33]}  g3 {[%clk 0:00:20]} 42. Rxf5+ {[%clk 0:00:32]}  Kg4 {[%clk 0:00:21]} 43. Rf6 {[%clk 0:00:30]}  g2 {[%clk 0:00:17]} 44. Rg6+ {[%clk 0:00:31]}  Kxh5 {[%clk 0:00:16]} 45. Rg8 {[%clk 0:00:29]}  Bh2 {[%clk 0:00:15]} 46. Rh8+ {[%clk 0:00:25]}  Kg4 {[%clk 0:00:15]} 47. Rg8+ {[%clk 0:00:24]}  Kf3 {[%clk 0:00:14]} 48. Bc3 {[%clk 0:00:20]}  Ra2 {[%clk 0:00:12]} 49. Rf8+ {[%clk 0:00:18]}  Ke4 {[%clk 0:00:10]} 50. Re8+ {[%clk 0:00:18]}  Kd3 {[%clk 0:00:10]} 51. Rg8 {[%clk 0:00:16]}  Kxc3 {[%clk 0:00:10]} 52. Ke1 {[%clk 0:00:15]}  g1=Q+ {[%clk 0:00:09]} 53. Rxg1 {[%clk 0:00:16]}  Bxg1 {[%clk 0:00:10]} 54. Kf1 {[%clk 0:00:15]}  Bxe3 {[%clk 0:00:10]} 0-1

[Event "November 21 Late 2023"]
[Site "https://www.chess.com"]
[Date "2023.11.21"]
[Round "10"]
[White "Ongut, Tamas Gunes"]
[Black "Hansen, Sune Berg"]
[Result "1-0"]
[Board "53"]
[TimeControl "180+1"]
[WhiteFideId "770280"]
[BlackFideId "1400266"]
[WhiteElo "2148"]
[BlackElo "2683"]
[WhiteTeam "HUN"]
[BlackTeam "DEN"]
[WhiteClock "0:00:32"]
[BlackClock "0:00:56"]

1. e4 {[%clk 0:03:00]}  e5 {[%clk 0:02:59]} 2. Nf3 {[%clk 0:02:59]}  Nc6 {[%clk 0:03:00]} 3. Bb5 {[%clk 0:02:59]}  a6 {[%clk 0:02:59]} 4. Ba4 {[%clk 0:03:00]}  d6 {[%clk 0:02:58]} 5. O-O {[%clk 0:02:59]}  Bd7 {[%clk 0:02:59]} 6. c3 {[%clk 0:02:45]}  Nge7 {[%clk 0:02:57]} 7. d4 {[%clk 0:02:39]}  Ng6 {[%clk 0:02:56]} 8. Nbd2 {[%clk 0:02:34]}  Be7 {[%clk 0:02:55]} 9. Re1 {[%clk 0:02:29]}  h6 {[%clk 0:02:54]} 10. Nf1 {[%clk 0:02:27]}  Bg5 {[%clk 0:02:51]} 11. Ne3 {[%clk 0:02:24]}  b5 {[%clk 0:02:25]} 12. Bc2 {[%clk 0:02:20]}  Nf4 {[%clk 0:02:20]} 13. Nd5 {[%clk 0:02:16]}  Bg4 {[%clk 0:02:17]} 14. Bxf4 {[%clk 0:02:10]}  Bxf4 {[%clk 0:02:15]} 15. a4 {[%clk 0:02:10]}  Rb8 {[%clk 0:02:10]} 16. Nxf4 {[%clk 0:01:58]}  exf4 {[%clk 0:02:09]} 17. axb5 {[%clk 0:01:59]}  axb5 {[%clk 0:02:08]} 18. e5 {[%clk 0:01:59]}  d5 {[%clk 0:02:04]} 19. h3 {[%clk 0:01:55]}  Bh5 {[%clk 0:01:59]} 20. e6 {[%clk 0:01:52]}  f6 {[%clk 0:01:53]} 21. Qd3 {[%clk 0:01:48]}  Ne7 {[%clk 0:01:50]} 22. Nh4 {[%clk 0:01:44]}  g5 {[%clk 0:01:48]} 23. Nf5 {[%clk 0:01:43]}  Bg6 {[%clk 0:01:47]} 24. Qe2 {[%clk 0:00:58]}  Nxf5 {[%clk 0:01:24]} 25. Bxf5 {[%clk 0:00:56]}  Bxf5 {[%clk 0:01:24]} 26. Qh5+ {[%clk 0:00:56]}  Ke7 {[%clk 0:01:24]} 27. Qf7+ {[%clk 0:00:57]}  Kd6 {[%clk 0:01:25]} 28. e7 {[%clk 0:00:58]}  Qd7 {[%clk 0:01:23]} 29. Qxf6+ {[%clk 0:00:56]}  Be6 {[%clk 0:01:23]} 30. Ra6+ {[%clk 0:00:54]}  c6 {[%clk 0:01:22]} 31. Rxe6+ {[%clk 0:00:54]}  Qxe6 {[%clk 0:01:20]} 32. Rxc6+ {[%clk 0:00:54]}  Kxc6 {[%clk 0:01:20]} 33. Qxe6+ {[%clk 0:00:55]}  Kc7 {[%clk 0:01:20]} 34. Qe5+ {[%clk 0:00:52]}  Kc6 {[%clk 0:01:19]} 35. Qe6+ {[%clk 0:00:52]}  Kc7 {[%clk 0:01:19]} 36. h4 {[%clk 0:00:51]}  Rhg8 {[%clk 0:01:18]} 37. hxg5 {[%clk 0:00:50]}  hxg5 {[%clk 0:01:17]} 38. f3 {[%clk 0:00:48]}  Rbe8 {[%clk 0:01:15]} 39. Qe5+ {[%clk 0:00:46]}  Kc6 {[%clk 0:01:13]} 40. Qe6+ {[%clk 0:00:47]}  Kc7 {[%clk 0:01:13]} 41. Qxd5 {[%clk 0:00:45]}  Rg6 {[%clk 0:01:06]} 42. Qf7 {[%clk 0:00:42]}  Rgg8 {[%clk 0:00:56]} 43. d5 {[%clk 0:00:32]} 1-0